[Event "26th Hit Open-A 2022"]
[Site "Nova Gorica"]
[Date "2022.09.18"]
[Round "5.42"]
[White "Novak, Rok"]
[Black "Novak, Simona"]
[Result "1-0"]
[ECO "B11"]
[WhiteElo "1763"]
[BlackElo "1692"]
[Annotator "NA COMBH"]
[PlyCount "57"]
[EventDate "2022.09.16"]
[EventType "swiss"]
[EventCountry "SLO"]
[SourceTitle "playchess.com"]
[Source "ChessBase"]
[SourceQuality "1"]
[TimeControl "5400+30"]

1. e4 {[%emt 0:00:04]} c6 {[%emt 0:00:11]} 2. Nc3 {[%emt 0:00:05]} d5 {[%emt 0:00:24]} 3. Nf3 {[%emt 0:00:07]} Bg4 {[%emt 0:00:50]} 4. h3 {[%emt 0:00:11]} Bxf3 {[%emt 0:00:58]} 5. Qxf3 {[%emt 0:00:06]} e6 {[%emt 0:00:36]} 6. Be2 {[%emt 0:00:14]} Nf6 {[%emt 0:01:40]} 7. O-O {[%emt 0:00:39]} Bc5 {[%emt 0:01:45]} 8. Rd1 {[%emt 0:00:35]} Bd4 {[%emt 0:02:22]} 9. Qf4 {[%emt 0:01:03]} Nbd7 {[%emt 0:06:12]} 10. exd5 {[%emt 0:02:27]} Be5 {[%emt 0:00:32]} 11. Qb4 {[%emt 0:01:34]} cxd5 {[%emt 0:03:00]} 12. d4 {[%emt 0:01:25]} a5 {[%emt 0:01:23]} 13. Qxb7 {[%emt 0:01:37]} Rb8 {[%emt 0:02:31]} 14. Qa6 {[%emt 0:01:12]} Bc7 {[%emt 0:08:00]} 15. Qd3 {[%emt 0:02:59]} O-O {[%emt 0:01:03]} 16. a4 {[%emt 0:02:21]} Rb6 {[%emt 0:08:30]} 17. Bf3 {[%emt 0:04:03]} Bb8 {[%emt 0:01:35]} 18. Nb5 {[%emt 0:00:46]} Ne8 {[%emt 0:01:03]} 19. Bd2 {[%emt 0:01:07]} Rb7 {[%emt 0:00:39]} 20. Re1 {[%emt 0:02:37]} Nd6 {[%emt 0:02:36]} 21. b3 {[%emt 0:02:37]} Qb6 {[%emt 0:06:04]} 22. c4 {[%emt 0:02:15]} Nxb5 {[%emt 0:30:46]} 23. axb5 {[%emt 0:01:15]} dxc4 {[%emt 0:00:42]} 24. bxc4 {[%emt 0:00:11]} Ra7 {[%emt 0:00:44]} 25. c5 {[%emt 0:01:37]} Nxc5 {[%emt 0:05:31]} 26. dxc5 {[%emt 0:00:31]} Qc7 {[%emt 0:04:11]} 27. g3 {[%emt 0:00:08]} Rd8 {[%emt 0:00:28]} 28. Qc2 {[%emt 0:02:07]} Rc8 {[%emt 0:01:40]} 29. b6 {[%emt 0:01:16]} 1-0

[Event "26th Hit Open-A 2022"]
[Site "Nova Gorica"]
[Date "2022.09.18"]
[Round "5.43"]
[White "Budai, Federico"]
[Black "Mocic, Ivano"]
[Result "1/2-1/2"]
[ECO "B07"]
[WhiteElo "1712"]
[BlackElo "1672"]
[Annotator "NA COMBH"]
[PlyCount "53"]
[EventDate "2022.09.16"]
[EventType "swiss"]
[EventCountry "SLO"]
[SourceTitle "playchess.com"]
[Source "ChessBase"]
[SourceQuality "1"]
[TimeControl "5400+30"]

1. e4 {[%emt 0:00:03]} g6 {[%emt 0:00:34]} 2. g3 {[%emt 0:01:01]} Bg7 {[%emt 0:00:08]} 3. Bg2 {[%emt 0:00:12]} d6 {[%emt 0:00:17]} 4. Nf3 {[%emt 0:00:41]} a6 {[%emt 0:00:48]} 5. O-O {[%emt 0:01:56]} Nf6 {[%emt 0:01:55]} 6. Re1 {[%emt 0:01:20]} O-O {[%emt 0:00:21]} 7. d3 {[%emt 0:05:22]} Bg4 {[%emt 0:02:45]} 8. h3 {[%emt 0:02:31]} Bxf3 {[%emt 0:00:26]} 9. Bxf3 {[%emt 0:00:31]} c6 {[%emt 0:03:45]} 10. Nc3 {[%emt 0:05:51]} Nbd7 {[%emt 0:00:21]} 11. Bg2 {[%emt 0:02:12]} Qc7 {[%emt 0:03:29]} 12. Be3 {[%emt 0:02:26]} b5 {[%emt 0:03:35]} 13. Ne2 {[%emt 0:04:49]} Rad8 {[%emt 0:01:42]} 14. c3 {[%emt 0:04:04]} d5 {[%emt 0:08:54]} 15. Qc2 {[%emt 0:15:34]} e5 {[%emt 0:04:15]} 16. Rac1 {[%emt 0:09:44]} Nb6 {[%emt 0:07:07]} 17. exd5 {[%emt 0:06:50]} cxd5 {[%emt 0:06:31]} 18. f4 {[%emt 0:06:35]} exf4 {[%emt 0:13:16]} 19. Bxf4 {[%emt 0:01:32]} Qd7 {[%emt 0:02:37]} 20. Qd2 {[%emt 0:03:10]} Rfe8 {[%emt 0:02:10]} 21. b3 {[%emt 0:03:41]} Na8 {[%emt 0:09:05]} 22. Bg5 {[%emt 0:07:39]} Rc8 {[%emt 0:05:25]} 23. Nf4 {[%emt 0:05:10]} Nc7 {[%emt 0:01:27]} 24. Qf2 {[%emt 0:05:47]} Qd6 {[%emt 0:04:23]} 25. Ne2 {[%emt 0:02:09]} h6 {[%emt 0:02:36]} 26. Bf4 {[%emt 0:00:17]} Qd7 {[%emt 0:01:11]} 27. d4 {[%emt 0:01:47]} 1/2-1/2

[Event "26th Hit Open-A 2022"]
[Site "Nova Gorica"]
[Date "2022.09.18"]
[Round "5.44"]
[White "Savoia, Serge"]
[Black "Gamal, Alaa"]
[Result "0-1"]
[ECO "B01"]
[WhiteElo "1636"]
[BlackElo "1693"]
[Annotator "NA COMBH"]
[PlyCount "88"]
[EventDate "2022.09.16"]
[EventType "swiss"]
[EventCountry "SLO"]
[SourceTitle "playchess.com"]
[Source "ChessBase"]
[SourceQuality "1"]
[TimeControl "5400+30"]

1. e4 {[%emt 0:00:30]} d5 {[%emt 0:00:04]} 2. d3 {[%emt 0:00:11]} dxe4 {[%emt 0:00:21]} 3. dxe4 {[%emt 0:00:09]} Qxd1+ {[%emt 0:00:06]} 4. Kxd1 {[%emt 0:00:07]} e5 {[%emt 0:00:37]} 5. Be3 {[%emt 0:00:13]} Nf6 {[%emt 0:00:47]} 6. f3 {[%emt 0:00:07]} Be6 {[%emt 0:00:46]} 7. g3 {[%emt 0:00:22]} Nc6 {[%emt 0:02:08]} 8. c3 {[%emt 0:00:08]} a6 {[%emt 0:01:17]} 9. Nd2 {[%emt 0:00:36]} Rd8 {[%emt 0:00:19]} 10. Kc2 {[%emt 0:00:12]} Nd7 {[%emt 0:00:16]} 11. Bh3 {[%emt 0:00:35]} Bxh3 {[%emt 0:03:18]} 12. Nxh3 {[%emt 0:00:08]} Nc5 {[%emt 0:00:12]} 13. Nf2 {[%emt 0:01:13]} b5 {[%emt 0:02:05]} 14. Bxc5 {[%emt 0:01:36]} Bxc5 {[%emt 0:00:40]} 15. Nd3 {[%emt 0:00:20]} Bb6 {[%emt 0:00:41]} 16. a4 {[%emt 0:00:40]} O-O {[%emt 0:03:14]} 17. f4 {[%emt 0:01:58]} f5 {[%emt 0:08:04]} 18. exf5 {[%emt 0:01:30]} exf4 {[%emt 0:01:26]} 19. g4 {[%emt 0:01:21]} Be3 {[%emt 0:01:00]} 20. Nf3 {[%emt 0:02:16]} h6 {[%emt 0:04:27]} 21. axb5 {[%emt 0:02:49]} axb5 {[%emt 0:00:04]} 22. Ra6 {[%emt 0:00:34]} Rd6 {[%emt 0:00:24]} 23. Rha1 {[%emt 0:00:35]} Rfd8 {[%emt 0:00:31]} 24. Nde1 {[%emt 0:04:18]} b4 {[%emt 0:00:57]} 25. h4 {[%emt 0:01:17]} Bf2 {[%emt 0:02:16]} 26. Ng2 {[%emt 0:02:05]} bxc3 {[%emt 0:01:52]} 27. bxc3 {[%emt 0:00:10]} Bg3 {[%emt 0:01:50]} 28. Ra8 {[%emt 0:00:55]} Kf7 {[%emt 0:05:42]} 29. Rxd8 {[%emt 0:00:30]} Rxd8 {[%emt 0:00:43]} 30. Ra4 {[%emt 0:00:15]} Re8 {[%emt 0:01:18]} 31. Nxf4 {[%emt 0:03:32]} Re3 {[%emt 0:00:31]} 32. Nd2 {[%emt 0:03:31]} Bxh4 {[%emt 0:05:38]} 33. Nd5 {[%emt 0:01:10]} Re2 {[%emt 0:01:02]} 34. Kd3 {[%emt 0:00:21]} Rg2 {[%emt 0:00:52]} 35. Ne4 {[%emt 0:04:59]} Rxg4 {[%emt 0:01:04]} 36. Nd6+ {[%emt 0:00:03]} cxd6 {[%emt 0:00:02]} 37. Rxg4 {[%emt 0:00:01]} Ne5+ {[%emt 0:00:01]} 38. Ke4 {[%emt 0:01:25]} Nxg4 {[%emt 0:00:02]} 39. Kf4 {[%emt 0:00:39]} Ne5 {[%emt 0:03:32]} 40. Ke4 {[%emt 0:01:24]} Be1 {[%emt 0:00:37]} 41. Kf4 {[%emt 0:00:46]} Nc6 {[%emt 0:01:41]} 42. Kg4 {[%emt 0:00:35]} Ne7 {[%emt 0:00:50]} 43. c4 {[%emt 0:00:20]} Nxd5 {[%emt 0:00:10]} 44. cxd5 {[%emt 0:00:06]} Kf6 {[%emt 0:00:04]} 0-1

[Event "26th Hit Open-A 2022"]
[Site "Nova Gorica"]
[Date "2022.09.18"]
[Round "5.45"]
[White "Hellsten, Uffe"]
[Black "Papler, Peter"]
[Result "1-0"]
[ECO "B07"]
[WhiteElo "1732"]
[BlackElo "1750"]
[Annotator "NA COMBH"]
[PlyCount "61"]
[EventDate "2022.09.16"]
[EventType "swiss"]
[EventCountry "SLO"]
[SourceTitle "playchess.com"]
[Source "ChessBase"]
[SourceQuality "1"]
[TimeControl "5400+30"]

1. e4 {[%emt 0:00:05]} d6 {[%emt 0:00:05]} 2. d4 {[%emt 0:00:06]} Nf6 {[%emt 0:00:06]} 3. Nc3 {[%emt 0:00:06]} c6 {[%emt 0:00:26]} 4. f3 {[%emt 0:01:21]} Qc7 {[%emt 0:00:15]} 5. Bc4 {[%emt 0:04:32]} Nbd7 {[%emt 0:00:23]} 6. Nge2 {[%emt 0:02:22]} e5 {[%emt 0:00:26]} 7. Be3 {[%emt 0:04:04]} Be7 {[%emt 0:01:05]} 8. Qd2 {[%emt 0:01:56]} Nf8 {[%emt 0:02:00]} 9. O-O-O {[%emt 0:04:52]} Ne6 {[%emt 0:01:27]} 10. Bb3 {[%emt 0:02:55]} Bd7 {[%emt 0:00:55]} 11. g4 {[%emt 0:04:43]} b5 {[%emt 0:08:23]} 12. d5 {[%emt 0:06:04]} Nd8 {[%emt 0:01:03]} 13. Ng3 {[%emt 0:01:50]} c5 {[%emt 0:00:29]} 14. g5 {[%emt 0:01:42]} Ng8 {[%emt 0:02:40]} 15. a3 {[%emt 0:05:05]} a5 {[%emt 0:01:31]} 16. a4 {[%emt 0:15:08]} c4 {[%emt 0:02:02]} 17. Ba2 {[%emt 0:01:59]} bxa4 {[%emt 0:08:17]} 18. f4 {[%emt 0:00:53]} Rb8 {[%emt 0:04:13]} 19. Qf2 {[%emt 0:01:20]} f6 {[%emt 0:06:38]} 20. fxe5 {[%emt 0:01:05]} dxe5 {[%emt 0:00:45]} 21. Nf5 {[%emt 0:01:27]} Bf8 {[%emt 0:03:17]} 22. gxf6 {[%emt 0:04:33]} gxf6 {[%emt 0:03:04]} 23. Qe2 {[%emt 0:01:33]} a3 {[%emt 0:00:47]} 24. Qh5+ {[%emt 0:00:13]} Nf7 {[%emt 0:00:18]} 25. d6 {[%emt 0:01:13]} axb2+ {[%emt 0:01:27]} 26. Kb1 {[%emt 0:00:11]} Qc8 {[%emt 0:02:10]} 27. Nd5 {[%emt 0:01:52]} Bxf5 {[%emt 0:01:26]} 28. Nc7+ {[%emt 0:02:08]} Kd7 {[%emt 0:03:40]} 29. Qxf7+ {[%emt 0:02:08]} Kc6 {[%emt 0:00:10]} 30. Qxc4+ {[%emt 0:02:54]} Kd7 {[%emt 0:01:09]} 31. Qa4+ {[%emt 0:00:37]} 1-0

[Event "26th Hit Open-A 2022"]
[Site "Nova Gorica"]
[Date "2022.09.19"]
[Round "6.1"]
[White "Drazic, Sinisa"]
[Black "Wadsworth, Matthew J"]
[Result "1/2-1/2"]
[ECO "C02"]
[WhiteElo "2327"]
[BlackElo "2423"]
[Annotator "TA"]
[PlyCount "112"]
[EventDate "2022.09.16"]
[EventType "swiss"]
[EventCountry "SLO"]
[SourceTitle "playchess.com"]
[Source "ChessBase"]
[SourceQuality "1"]
[TimeControl "5400+30"]

{[%evp 14,112,20,18,23,27,49,45,57,60,68,68,123,106,123,68,173,158,156,162,172,87,113,98,82,93,134,159,139,150,152,163,139,153,168,166,231,202,185,131,136,130,121,114,138,150,141,122,144,95,112,99,82,16,30,0,16,0,0,0,0,0,20,17,52,-1,0,-7,-8,-8,0,0,0,-21,0,-299,0,0,0,0,0,0,0,0,0,0,0,0,0,-8,-8,-8,-8,-8,-8,-8,0,-8,-8,-8,-8]} 1. e4 {[%emt 0:01:31]} e6 {[%emt 0:00:29]} 2. d4 {[%emt 0:00:20]} d5 {[%emt 0:00:07]} 3. e5 {[%emt 0:00:25]} c5 {[%emt 0:00:26]} 4. c3 {[%emt 0:00:11]} Qb6 {[%emt 0:00:23]} 5. Nf3 {[%emt 0:00:12]} Nc6 {[%emt 0:00:15][%cal Bb8c6,Bc6a5,Ba5c4][%mdl 32]} 6. a3 {[%emt 0:00:14]} Nh6 {[%emt 0:01:26]} 7. Bd3 $1 {[%emt 0:00:42][%mdl 4] now scores much better than the old 7.b4.} cxd4 {[%emt 0:06:54]} 8. cxd4 {[%emt 0:00:10] RECAPT 2 (0-0) (=2)} Bd7 {[%emt 0:04:27] BESTDEEP. C02: French: Advance Variation.} (8... Nxd4 $2 9. Nxd4 Bc5 10. Nb5 Bxf2+ 11. Kf1 $18) 9. Bc2 {[%emt 0:00:03] BESTDEEP} ({Don't play} 9. Bxh6 gxh6 10. Qe2 Nxd4 11. Nxd4 Qxd4 $17) 9... Rc8 {[%emt 0:04:25][%cal Oc6d4] CPLX 2.4 22 (Nh6-f5) (=11)} 10. Nc3 {[%emt 0:01:16] EASY} Na5 {[%emt 0:05:41] CPLX 2.3 12 (g7-g6) (=11). White is slightly better.} 11. O-O {[%emt 0:00:31] CPLX 2.4 0 (Ra1-b1) (=1)} Nc4 {[%emt 0:05:36] CPLX 2.5 8 (g7-g6) (=11)} 12. Rb1 {[%emt 0:06:21] BESTDEEP} Qc7 {[%emt 0:10:01] CPLX 2.5 55 (g7-g6) (=19)} ({Black should play} 12... g6 $14) 13. Bd3 {[%emt 0:11:04] [#] CPLX 2.5 17 (Bc1xh6) (=3)} Be7 $146 {[%emt 0:06:11] CPLX 2.6 17 (g7-g6) (=19)} ({Predecessor:} 13... a6 14. Ng5 g6 15. Qe2 Qc6 16. g4 Bg7 17. Qf3 O-O 18. Qh3 Nxa3 19. Ra1 Nc4 20. Nxh7 Kxh7 {1-0 (40) Panskus,M (2156)-Jaeger,H Kiel 2000}) 14. Ne2 {[%emt 0:01:25] CPLX 2.7 55 (Rf1-e1) (=11)} (14. Re1 $16) 14... f5 {[%emt 0:20:52] CPLX 2.6 105 (Nh6-f5) (=31)} (14... Nf5 $14) 15. exf6 {[%emt 0:18:45] CPLX 2.7 15 (Bd3xc4) (=11)} Bxf6 {[%emt 0:00:04] RECAPT} 16. b3 {[%emt 0:00:32] CPLX 2.7 0 (Bc1xh6) (=10)} Nd6 {[%emt 0:00:52] CPLX 2.8 10 (Nc4-a5) (=25)} 17. Bf4 {[%emt 0:01:05] MISSDEEP-Bc1xh6 85 (Bc1xh6) (=17)} (17. Bxh6 $18 gxh6 18. Rc1) 17... Qb6 {[%emt 0:02:53] CPLX 2.9 26 (Nh6-f7) (=26)} 18. a4 {[%emt 0:12:46][%cal Ba3a4,Ba4a5][%mdl 32] CPLX 2.7 15 (Bf4xh6) (=17)} Nhf7 {[%emt 0:02:51] CPLX 2.6 0 (Nd6-f5) (=23)} 19. Ne5 {[%emt 0:02:38] CPLX 2.6 0 (Rf1-e1) (=16)} g5 {[%emt 0:03:45] CPLX 3.0 41 (Qb6-d8) (=25)} 20. Nxd7 {[%emt 0:10:23] BESTDEEP} Kxd7 {[%emt 0:00:06] RECAPT} 21. Bd2 {[%emt 0:00:13] BESTDEEP} a6 {[%emt 0:03:46] CPLX 3.5 2 (h7-h5) (=21)} (21... Bxd4 $2 22. a5 Qd8 23. Nxd4 $18) 22. a5 {[%emt 0:01:35] CPLX 2.7} Qa7 {[%emt 0:00:13] CPLX 2.9} 23. Be3 {[%emt 0:00:19] CPLX 2.6} h5 {[%emt 0:01:10] [#] CPLX 2.5 15 (Nf7-h6) (=20)} 24. Qd2 $1 {[%emt 0:06:43] BESTDEEP} h4 {[%emt 0:05:47] CPLX 2.6 65 (Rh8-g8) (=22)} (24... Rhg8 $142 25. Rbc1 Rxc1 26. Rxc1 h4) 25. h3 {[%emt 0:01:51] CPLX 2.7 29 (f2-f4) (=12)} Rhg8 {[%emt 0:00:38] CPLX 2.7} 26. Rfc1 {[%emt 0:01:44] CPLX 2.7 54 (f2-f4) (=14)} (26. f4 $18) 26... Rxc1+ $16 {[%emt 0:02:58] CPLX 4.0} 27. Rxc1 {[%emt 0:00:21] RECAPT} Rc8 {[%emt 0:04:43] CPLX 3.6} 28. Rc5 {[%emt 0:01:43] CPLX 3.6 7 (Rc1-f1) (=13)} b6 {[%emt 0:00:50] CPLX 3.6 24 (Rc8-c6) (=19)} 29. axb6 {[%emt 0:00:18] White is more active. MISS-Rc5xc8 0 (Rc5xc8) (=13)} Qxb6 {[%emt 0:00:01] RECAPT} 30. Qa2 {[%emt 0:00:13] CPLX 3.8} Rb8 {[%emt 0:00:51] CPLX 4.5 22 (Nf7-d8) (=18)} 31. Nc3 {[%emt 0:03:57] CPLX 4.5 49 (Ne2-c1) (=14)} ({White should try} 31. Nc1) 31... Qxb3 {[%emt 0:01:48] DEEPSTRONG} 32. Qxa6 {[%emt 0:01:10][%cal Oc3b5] Strongly threatening Nb5! EASY} Ke7 {[%emt 0:00:55][%cal Bd7e7,Be7f8,Bf8g7][%mdl 32] BESTDEEP} 33. Kh2 {[%emt 0:05:39] The board is on fire. RELBLUND 66 (Nc3-a4) (=15)} (33. Na4 $16 {Rc7+ is the strong threat.} Qb7 34. Qa5) 33... Qb6 {[%emt 0:01:04] Inhibits Rc7+. CPLX 5.1 14 (Qb3-b7) (=17)} 34. Qa3 {[%emt 0:00:12] And now Rb5 would win. CPLX 4.0 30 (Qa6-a1) (=16)} Qb4 {[%emt 0:00:32] Prevents Rb5. CPLX 3.8 16 (Ke7-f8) (=17)} 35. Rc7+ {[%emt 0:06:05] CPLX 5.4 16 (Qa3xb4) (=16)} Kf8 {[%emt 0:00:06] CPLX 4.2} 36. Qa7 {[%emt 0:01:14] CPLX 4.3 0 (Qa3-a4) (=15)} Bd8 {[%emt 0:01:49] CPLX 4.1} 37. Rc6 {[%emt 0:00:58] CPLX 4.5 0 (Rc7-d7) (=15)} Rb7 {[%emt 0:00:48] CPLX 4.1 20 (Rb8-c8) (=16)} 38. Qa8 {[%emt 0:00:16] CPLX 4.0} Kg7 {[%emt 0:00:26] CPLX 4.0 35 (Qb4-a5) (=16)} 39. Qa1 {[%emt 0:01:50] RELBLUND 53 (Nc3-a4) (=15)} (39. Na4 $1 $14 Qe1 40. Nc5 (40. Rxd6 Bc7 $16)) 39... Rc7 $11 {[%emt 0:00:52] CPLX 3.7} 40. Qa6 {[%emt 0:01:22] CPLX 4.0 7 (Rc6xc7) (=15)} Rxc6 {[%emt 0:00:37] BESTDEEP} 41. Qxc6 {[%emt 0:00:02] RECAPT} Bf6 {[%emt 0:00:32] CPLX 3.3 8 (Nd6-c4) (=15)} 42. Ne2 {[%emt 0:00:18] CPLX 3.4} Qb3 {[%emt 0:00:50] CPLX 3.3} 43. Qa6 {[%emt 0:00:10] CPLX 3.5 21 (Ne2-c1) (=14)} Nc4 {[%emt 0:01:13] CPLX 3.4 21 (Nd6-f5) (=15)} (43... Nf5 $5 {[%cal Rf5e3]}) 44. Nc1 {[%emt 0:01:04][%mdl 8192] [#] RELBLUND 299 (Bd3xc4) (=22)} (44. Bxc4 $11 Qxc4 45. Qxc4 dxc4 46. g4) 44... Qc3 $2 {[%emt 0:00:18] CPLX 4.2 299 (Qb3-b8) (=23)} (44... Qb8+ $1 $19 45. Kh1 Nxe3 46. fxe3 Qg3) 45. Bxc4 {[%emt 0:01:43] DEEPSTRONG=>BLUNDERREACT. The position is equal.} dxc4 {[%emt 0:00:26] CPLX 3.3 0 (Qc3xc4) (=22)} 46. Qxe6 {[%emt 0:00:32] CPLX 2.8} Bxd4 {[%emt 0:00:05] EASY} 47. Ne2 {[%emt 0:00:29][%csl LRc3,LRd4] CPLX 3.4} Be5+ {[%emt 0:00:07] EASY} 48. g3 {[%emt 0:00:01] EASY} Qd3 {[%emt 0:01:50] EASY} 49. Qg4 {[%emt 0:00:07] CPLX 3.7} c3 {[%emt 0:00:33] BESTDEEP} 50. Kg2 {[%emt 0:00:01] CPLX 3.2 0 (Be3xg5) (=19)} hxg3 {[%emt 0:00:36] CPLX 3.5 0 (Qd3-d5) (=19)} 51. Nxg3 {[%emt 0:00:15] RECAPT 8 (Be3xg5) (=19)} Bxg3 {[%emt 0:00:30] RECAPT} 52. Qxg3 {[%emt 0:00:35] KQB-KQN. RECAPT} c2 {[%emt 0:00:17] CPLX 4.0 0 (Kg7-g6) (=19)} 53. Qc7 {[%emt 0:00:25] CPLX 4.5} Qe4+ {[%emt 0:00:25] CPLX 4.8} 54. Kg1 {[%emt 0:01:10] EASY} g4 {[%emt 0:01:00] CPLX 4.3 8 (Qe4-f5) (=18)} 55. hxg4 {[%emt 0:00:27] CPLX 4.7 8 (h3-h4) (=17)} Qxg4+ {[%emt 0:00:05] RECAPT} 56. Qg3 {[%emt 0:00:07] BESTDEEP} Qxg3+ {[%emt 0:00:05] White really could win this.  Weighted Error Value: White=0.21 (precise) /Black=0.21 (precise)} 1/2-1/2

[Event "26th Hit Open-A 2022"]
[Site "Nova Gorica"]
[Date "2022.09.19"]
[Round "6.2"]
[White "Seo, Jung Min"]
[Black "Stefansson, Vignir Vatnar"]
[Result "1/2-1/2"]
[ECO "E08"]
[WhiteElo "2516"]
[BlackElo "2452"]
[Annotator "TA"]
[PlyCount "33"]
[EventDate "2022.09.16"]
[EventType "swiss"]
[EventCountry "SLO"]
[SourceTitle "playchess.com"]
[Source "ChessBase"]
[SourceQuality "1"]
[TimeControl "5400+30"]

{[%evp 32,33,0,0]} 1. d4 {[%emt 0:00:03]} e6 {[%emt 0:04:36]} 2. c4 {[%emt 0:00:04]} d5 {[%emt 0:01:37]} 3. Nf3 {[%emt 0:00:16]} Nf6 {[%emt 0:00:36]} 4. g3 {[%emt 0:00:04]} Bb4+ {[%emt 0:03:44]} 5. Bd2 {[%emt 0:00:47]} Be7 {[%emt 0:00:08]} 6. Bg2 {[%emt 0:00:02]} O-O {[%emt 0:00:08]} 7. O-O {[%emt 0:00:04]} c6 {[%emt 0:00:05]} 8. Qc2 {[%emt 0:00:38]} b6 {[%emt 0:00:15]} 9. Rd1 {[%emt 0:03:18]} Bb7 {[%emt 0:00:23]} 10. Bf4 {[%emt 0:01:45]} Nh5 {[%emt 0:00:10]} 11. Bc1 {[%emt 0:00:06]} Nf6 {[%emt 0:00:23]} 12. Ne5 {[%emt 0:08:08]} Nbd7 {[%emt 0:06:32]} 13. Bf4 {[%emt 0:01:00]} Nh5 {[%emt 0:01:21]} 14. Bc1 {[%emt 0:00:05]} Nhf6 {[%emt 0:00:08]} 15. Bf4 {[%emt 0:01:41]} Nh5 {[%emt 0:01:21] [#]} 16. Bc1 $146 {[%emt 0:00:05]} ({Predecessor:} 16. Bd2 Nhf6 17. cxd5 cxd5 18. Nc6 Bxc6 19. Qxc6 Rc8 20. Qa4 Qc7 21. Nc3 Qb7 22. e3 a6 23. Qb3 Rc7 24. Rdc1 b5 25. Ne2 Nb6 26. Rxc7 Qxc7 27. Rc1 Nc4 28. Bb4 Rb8 {½-½ (33) Vidit,S (2726)-Duda,J (2738) Krasnaya Polyana 2021}) 16... Nhf6 {[%emt 0:02:04]} 17. Bf4 {[%emt 0:00:52]} 1/2-1/2

[Event "26th Hit Open-A 2022"]
[Site "Nova Gorica"]
[Date "2022.09.19"]
[Round "6.3"]
[White "Pavlovic, Milos"]
[Black "Fercec, Nenad"]
[Result "1/2-1/2"]
[WhiteElo "2468"]
[BlackElo "2403"]
[Annotator "TA"]
[PlyCount "31"]
[EventDate "2022.09.16"]
[EventType "swiss"]
[EventCountry "SLO"]
[SourceTitle "playchess.com"]
[Source "ChessBase"]
[SourceQuality "1"]
[TimeControl "5400+30"]

{[%evp 14,18,16,26,51,57,62]} 1. d4 {[%emt 0:00:03]} Nf6 {[%emt 0:00:04]} 2. c4 {[%emt 0:00:09]} g6 {[%emt 0:00:06]} 3. g3 {[%emt 0:00:09]} Bg7 {[%emt 0:00:05]} 4. Bg2 {[%emt 0:00:06]} O-O {[%emt 0:00:04]} 5. Nf3 {[%emt 0:00:18]} d5 {[%emt 0:00:07]} 6. cxd5 {[%emt 0:00:10]} Nxd5 {[%emt 0:00:05]} 7. O-O {[%emt 0:00:08]} Nb6 {[%emt 0:00:08]} 8. Nc3 {[%emt 0:00:07]} a5 {[%emt 0:00:08] CPLX 2.1 25 (Nb8-c6) (=25). D76: Fianchetto Grünfeld: Main Line with 7...Nb6.} 9. Bf4 {[%emt 0:00:14] BESTDEEP} c6 {[%emt 0:00:06] [#]} {Predecessor:} 10. Qc1 $146 Bg4 11. Rd1 Na6 12. Be5 f6 13. Bf4 Qc8 14. b3 Nd5 15. Bd2 Nxc3 16. Bxc3 {1-0 (46) Leisner,H (2237)-Gyorkos,L (2351) Germany 2015} 1/2-1/2